[Event "Summer Prague Open A 2020"]
[Site "Prague"]
[Date "2020.08.12"]
[Round "6.2"]
[White "Plat, Vojtech"]
[Black "Miedema, David"]
[Result "1-0"]
[ECO "C00"]
[WhiteElo "2562"]
[BlackElo "2382"]
[Annotator "ChessBase"]
[PlyCount "83"]
[EventDate "2020.08.08"]
[EventCountry "CZE"]
[SourceTitle "playchess.com"]
[Source "ChessBase"]
[SourceQuality "1"]
[TimeControl "40/5400+30:1800+30"]

1. e4 {[%emt 0:02:55]} e6 {[%emt 0:00:00]} 2. Qe2 {[%emt 0:00:08]} Be7 {[%emt 0:00:00]} 3. g3 {[%emt 0:00:18]} d5 {[%emt 0:00:00]} 4. Nc3 {[%emt 0:02:12]} Nf6 {[%emt 0:00:45]} 5. Bg2 {[%emt 0:00:11]} d4 {[%emt 0:08:46]} 6. Nd1 {[%emt 0:00:03]} c5 {[%emt 0:00:20]} 7. d3 {[%emt 0:00:12]} e5 {[%emt 0:04:10]} 8. f4 {[%emt 0:02:26]} exf4 {[%emt 0:00:04]} 9. gxf4 {[%emt 0:01:23]} Nc6 {[%emt 0:00:04]} 10. Nf3 {[%emt 0:01:05]} Qc7 {[%emt 0:01:05]} 11. c4 {[%emt 0:04:11]} Nh5 {[%emt 0:10:50]} 12. e5 {[%emt 0:00:27]} O-O {[%emt 0:18:12]} 13. Nf2 {[%emt 0:00:33]} f6 {[%emt 0:00:34]} 14. Nh4 {[%emt 0:06:44]} g6 {[%emt 0:00:25]} 15. Rg1 {[%emt 0:09:23]} fxe5 {[%emt 0:09:24]} 16. Bd5+ {[%emt 0:11:05]} Kh8 {[%emt 0:01:08]} 17. Nxg6+ {[%emt 0:00:04]} hxg6 {[%emt 0:00:04]} 18. Rxg6 {[%emt 0:00:01]} Nf6 {[%emt 0:00:18]} 19. Bxc6 {[%emt 0:00:05]} bxc6 {[%emt 0:01:27]} 20. fxe5 {[%emt 0:00:03]} Nh7 {[%emt 0:00:53]} 21. Bh6 {[%emt 0:00:07]} Rf7 {[%emt 0:27:33]} 22. e6 {[%emt 0:02:05]} Bxe6 {[%emt 0:00:09]} 23. Rxe6 {[%emt 0:00:17]} Qxh2 {[%emt 0:07:55]} 24. Rxe7 {[%emt 0:03:46]} Rxe7 {[%emt 0:00:33]} 25. Qxe7 {[%emt 0:00:01]} Qxh6 {[%emt 0:00:05]} 26. Qe5+ {[%emt 0:01:15]} Nf6 {[%emt 0:01:22]} 27. Ke2 {[%emt 0:07:19]} Re8 {[%emt 0:02:17]} 28. Qxe8+ {[%emt 0:00:03]} Nxe8 {[%emt 0:00:01]} 29. Rh1 {[%emt 0:00:05]} Qxh1 {[%emt 0:00:12]} 30. Nxh1 {[%emt 0:00:01]} Nf6 {[%emt 0:00:19]} 31. Ng3 {[%emt 0:00:10]} Kg7 {[%emt 0:00:44]} 32. b4 {[%emt 0:02:40]} Nd7 {[%emt 0:03:10]} 33. bxc5 {[%emt 0:00:11]} Kf6 {[%emt 0:00:04]} 34. Kf3 {[%emt 0:00:57]} Ke5 {[%emt 0:00:08]} 35. Ne4 {[%emt 0:00:05]} a6 {[%emt 0:02:04]} 36. a3 {[%emt 0:01:44]} Kf5 {[%emt 0:01:08]} 37. Nd6+ {[%emt 0:00:13]} Ke6 {[%emt 0:00:12]} 38. Nb7 {[%emt 0:00:05]} Ke5 {[%emt 0:01:29]} 39. Ke2 {[%emt 0:00:16]} Ke6 {[%emt 0:01:00]} 40. Nd8+ {[%emt 0:00:08]} Kf6 {[%emt 0:00:18]} 41. Nxc6 {[%emt 0:30:04]} Nxc5 {[%emt 0:30:04]} 42. Nxd4 {[%emt 0:00:07]} 1-0

[Event "Summer Prague Open A 2020"]
[Site "Prague"]
[Date "2020.08.12"]
[Round "6.3"]
[White "Cernousek, Lukas"]
[Black "Svanda, Ondrej"]
[Result "1/2-1/2"]
[ECO "D78"]
[WhiteElo "2458"]
[BlackElo "2238"]
[Annotator "ChessBase"]
[PlyCount "35"]
[EventDate "2020.08.08"]
[EventCountry "CZE"]
[SourceTitle "playchess.com"]
[Source "ChessBase"]
[SourceQuality "1"]
[TimeControl "40/5400+30:1800+30"]

1. d4 {[%emt 0:00:00]} Nf6 {[%emt 0:00:00]} 2. c4 {[%emt 0:00:00]} g6 {[%emt 0:00:00]} 3. g3 {[%emt 0:00:00]} c6 {[%emt 0:00:00]} 4. Bg2 {[%emt 0:00:34]} d5 {[%emt 0:00:00]} 5. Nf3 {[%emt 0:00:05]} Bg7 {[%emt 0:00:19]} 6. O-O {[%emt 0:00:07]} O-O {[%emt 0:00:14]} 7. b3 {[%emt 0:00:04]} dxc4 {[%emt 0:02:01]} 8. bxc4 {[%emt 0:00:05]} c5 {[%emt 0:00:03]} 9. Bb2 {[%emt 0:00:10]} Qb6 {[%emt 0:00:26]} 10. Qc1 {[%emt 0:02:05]} cxd4 {[%emt 0:18:46]} 11. Nxd4 {[%emt 0:00:03]} Nc6 {[%emt 0:02:59]} 12. Nxc6 {[%emt 0:00:21]} bxc6 {[%emt 0:00:02]} 13. Nd2 {[%emt 0:00:18]} Be6 {[%emt 0:03:19]} 14. Rb1 {[%emt 0:13:15]} Qa6 {[%emt 0:04:36]} 15. Be5 {[%emt 0:21:08]} Rfd8 {[%emt 0:08:46]} 16. Qc3 {[%emt 0:16:16]} Bh6 {[%emt 0:16:04]} 17. Bf4 {[%emt 0:14:36]} Bxf4 {[%emt 0:07:53]} 18. gxf4 {[%emt 0:00:02]} 1/2-1/2

[Event "Summer Prague Open A 2020"]
[Site "Prague"]
[Date "2020.08.12"]
[Round "6.4"]
[White "Roseneck, Jonas"]
[Black "Slampa, Jan"]
[Result "1/2-1/2"]
[ECO "B48"]
[WhiteElo "2416"]
[BlackElo "2264"]
[Annotator "ChessBase"]
[PlyCount "127"]
[EventDate "2020.08.08"]
[EventCountry "CZE"]
[SourceTitle "playchess.com"]
[Source "ChessBase"]
[SourceQuality "1"]
[TimeControl "40/5400+30:1800+30"]

1. e4 {[%emt 0:00:00]} c5 {[%emt 0:00:00]} 2. Nf3 {[%emt 0:00:00]} e6 {[%emt 0:00:00]} 3. d4 {[%emt 0:00:00]} cxd4 {[%emt 0:00:00]} 4. Nxd4 {[%emt 0:00:00]} Nc6 {[%emt 0:00:04]} 5. Nc3 {[%emt 0:00:00]} Qc7 {[%emt 0:00:10]} 6. Be3 {[%emt 0:00:00]} Nf6 {[%emt 0:01:02]} 7. Qf3 {[%emt 0:00:09]} a6 {[%emt 0:04:03]} 8. O-O-O {[%emt 0:00:31]} d6 {[%emt 0:07:26]} 9. Nxc6 {[%emt 0:13:25]} bxc6 {[%emt 0:02:10]} 10. g4 {[%emt 0:00:17]} d5 {[%emt 0:06:14]} 11. g5 {[%emt 0:05:15]} Nd7 {[%emt 0:01:51]} 12. exd5 {[%emt 0:01:29]} cxd5 {[%emt 0:00:49]} 13. Bd4 {[%emt 0:01:39]} Bb7 {[%emt 0:02:17]} 14. h4 {[%emt 0:11:14]} Rc8 {[%emt 0:04:08]} 15. Bh3 {[%emt 0:09:16]} Nc5 {[%emt 0:21:28]} 16. Qe2 {[%emt 0:25:44]} Ne4 {[%emt 0:03:32]} 17. Nxe4 {[%emt 0:04:17]} dxe4 {[%emt 0:01:49]} 18. Bg2 {[%emt 0:00:17]} h6 {[%emt 0:07:48]} 19. Rhe1 {[%emt 0:09:55]} hxg5 {[%emt 0:01:02]} 20. hxg5 {[%emt 0:00:01]} Rh4 {[%emt 0:04:26]} 21. Kb1 {[%emt 0:00:47]} Qf4 {[%emt 0:05:40]} 22. Be3 {[%emt 0:00:39]} Qe5 {[%emt 0:01:16]} 23. Qd2 {[%emt 0:01:51]} Bd5 {[%emt 0:04:46]} 24. Bf1 {[%emt 0:00:29]} Rb8 {[%emt 0:01:48]} 25. c4 {[%emt 0:02:05]} Bc6 {[%emt 0:00:01]} 26. Ba7 {[%emt 0:02:53]} Ra8 {[%emt 0:04:46]} 27. Bd4 {[%emt 0:00:06]} Qf5 {[%emt 0:01:30]} 28. Be3 {[%emt 0:01:52]} Be7 {[%emt 0:00:38]} 29. Be2 {[%emt 0:02:19]} Bxg5 {[%emt 0:05:51]} 30. Qd6 {[%emt 0:06:01]} Rc8 {[%emt 0:00:18]} 31. Bxg5 {[%emt 0:00:18]} Qxg5 {[%emt 0:00:51]} 32. c5 {[%emt 0:00:13]} Qe7 {[%emt 0:03:26]} 33. Qe5 {[%emt 0:02:05]} Bd5 {[%emt 0:02:08]} 34. Bxa6 {[%emt 0:00:51]} Rxc5 {[%emt 0:00:38]} 35. Qxg7 {[%emt 0:00:23]} Rf4 {[%emt 0:01:20]} 36. Qh8+ {[%emt 0:00:32]} Kd7 {[%emt 0:00:51]} 37. Qd4 {[%emt 0:00:32]} Qd6 {[%emt 0:00:26]} 38. Bf1 {[%emt 0:00:50]} Ke7 {[%emt 0:00:51]} 39. Qe3 {[%emt 0:00:42]} Rf3 {[%emt 0:01:05]} 40. Qg5+ {[%emt 0:00:22]} Kd7 {[%emt 0:00:08]} 41. Qd2 {[%emt 0:02:17]} Ke7 {[%emt 0:06:50]} 42. Ka1 {[%emt 0:05:14]} Qc7 {[%emt 0:04:05]} 43. Rc1 {[%emt 0:03:22]} Qa7 {[%emt 0:01:35]} 44. b3 {[%emt 0:02:09]} Rxf2 {[%emt 0:00:55]} 45. Be2 {[%emt 0:01:31]} Qa3 {[%emt 0:08:04]} 46. Rxc5 {[%emt 0:04:44]} Qxc5 {[%emt 0:00:11]} 47. Rc1 {[%emt 0:00:02]} Qd6 {[%emt 0:00:25]} 48. Qg5+ {[%emt 0:01:11]} Rf6 {[%emt 0:04:43]} 49. Rf1 {[%emt 0:00:05]} e5 {[%emt 0:00:03]} 50. Rf5 {[%emt 0:01:16]} Bc6 {[%emt 0:00:25]} 51. Kb1 {[%emt 0:01:10]} Bd7 {[%emt 0:03:21]} 52. Rxe5+ {[%emt 0:00:17]} Kf8 {[%emt 0:00:01]} 53. Rd5 {[%emt 0:01:39]} Qe7 {[%emt 0:00:41]} 54. Qh5 {[%emt 0:01:22]} Kg7 {[%emt 0:02:35]} 55. Qg5+ {[%emt 0:00:22]} Kf8 {[%emt 0:00:02]} 56. Bc4 {[%emt 0:03:16]} Rg6 {[%emt 0:00:44]} 57. Qh5 {[%emt 0:01:51]} Rg1+ {[%emt 0:00:37]} 58. Kc2 {[%emt 0:01:09]} Rg2+ {[%emt 0:00:04]} 59. Rd2 {[%emt 0:00:34]} Rxd2+ {[%emt 0:01:35]} 60. Kxd2 {[%emt 0:00:01]} Qf6 {[%emt 0:01:14]} 61. Ke3 {[%emt 0:01:18]} Bc6 {[%emt 0:00:22]} 62. a4 {[%emt 0:01:41]} Qc3+ {[%emt 0:01:07]} 63. Ke2 {[%emt 0:00:59]} Qc2+ {[%emt 0:00:21]} 64. Ke3 {[%emt 0:00:31]} 1/2-1/2

[Event "Summer Prague Open A 2020"]
[Site "Prague"]
[Date "2020.08.12"]
[Round "6.5"]
[White "Neuman, Petr"]
[Black "Michalczak, Thomas"]
[Result "1-0"]
[ECO "D35"]
[WhiteElo "2376"]
[BlackElo "2245"]
[Annotator "ChessBase"]
[PlyCount "67"]
[EventDate "2020.08.08"]
[EventCountry "CZE"]
[SourceTitle "playchess.com"]
[Source "ChessBase"]
[SourceQuality "1"]
[TimeControl "40/5400+30:1800+30"]

1. c4 {[%emt 0:00:00]} e6 {[%emt 0:00:23]} 2. Nc3 {[%emt 0:00:00]} d5 {[%emt 0:00:06]} 3. d4 {[%emt 0:00:00]} Nf6 {[%emt 0:00:03]} 4. cxd5 {[%emt 0:00:00]} exd5 {[%emt 0:00:06]} 5. Bg5 {[%emt 0:00:04]} Nbd7 {[%emt 0:00:05]} 6. e3 {[%emt 0:00:08]} c6 {[%emt 0:00:05]} 7. Bd3 {[%emt 0:00:09]} Be7 {[%emt 0:00:06]} 8. Nge2 {[%emt 0:00:10]} Nh5 {[%emt 0:00:13]} 9. Bxe7 {[%emt 0:00:07]} Qxe7 {[%emt 0:00:06]} 10. g4 {[%emt 0:00:13]} Nhf6 {[%emt 0:00:19]} 11. Ng3 {[%emt 0:00:11]} g6 {[%emt 0:01:28]} 12. g5 {[%emt 0:09:52]} Ng8 {[%emt 0:00:10]} 13. h4 {[%emt 0:00:08]} h6 {[%emt 0:00:23]} 14. h5 {[%emt 0:00:50]} Qxg5 {[%emt 0:01:28]} 15. hxg6 {[%emt 0:01:42]} fxg6 {[%emt 0:00:09]} 16. Qc2 {[%emt 0:00:14]} Nf8 {[%emt 0:01:13]} 17. O-O-O {[%emt 0:00:20]} Ne7 {[%emt 0:11:27]} 18. Kb1 {[%emt 0:05:02]} Bd7 {[%emt 0:08:44]} 19. b4 {[%emt 0:11:42]} Qf6 {[%emt 0:05:54]} 20. e4 {[%emt 0:01:47]} Qxd4 {[%emt 0:00:54]} 21. exd5 {[%emt 0:01:07]} Qxb4+ {[%emt 0:00:27]} 22. Ka1 {[%emt 0:00:04]} O-O-O {[%emt 0:06:16]} 23. Rb1 {[%emt 0:00:26]} Qd4 {[%emt 0:07:26]} 24. Nge2 {[%emt 0:07:44]} Qf6 {[%emt 0:06:25]} 25. Ba6 {[%emt 0:03:33]} cxd5 {[%emt 0:06:15]} 26. Bxb7+ {[%emt 0:01:36]} Kc7 {[%emt 0:00:09]} 27. Qb2 {[%emt 0:01:54]} d4 {[%emt 0:12:29]} 28. Rhc1 {[%emt 0:06:25]} dxc3 {[%emt 0:12:29]} 29. Rxc3+ {[%emt 0:00:24]} Kd6 {[%emt 0:02:31]} 30. Rd3+ {[%emt 0:01:48]} Ke6 {[%emt 0:00:16]} 31. Rd6+ {[%emt 0:00:07]} Kxd6 {[%emt 0:00:10]} 32. Qxf6+ {[%emt 0:00:06]} Ne6 {[%emt 0:00:15]} 33. Rd1+ {[%emt 0:00:20]} Kc7 {[%emt 0:00:38]} 34. Qxe7 {[%emt 0:00:05]} 1-0

[Event "Summer Prague Open A 2020"]
[Site "Prague"]
[Date "2020.08.12"]
[Round "6.6"]
[White "Kasioumis, Vasilios"]
[Black "Vokac, Marek"]
[Result "1-0"]
[ECO "B32"]
[WhiteElo "2277"]
[BlackElo "2362"]
[Annotator "ChessBase"]
[PlyCount "103"]
[EventDate "2020.08.08"]
[EventCountry "CZE"]
[SourceTitle "playchess.com"]
[Source "ChessBase"]
[SourceQuality "1"]
[TimeControl "40/5400+30:1800+30"]

1. e4 {[%emt 0:00:00]} c5 {[%emt 0:00:28]} 2. Nf3 {[%emt 0:00:00]} Nc6 {[%emt 0:00:20]} 3. d4 {[%emt 0:00:00]} cxd4 {[%emt 0:00:13]} 4. Nxd4 {[%emt 0:00:00]} Qb6 {[%emt 0:00:07]} 5. Nb3 {[%emt 0:00:00]} Nf6 {[%emt 0:00:11]} 6. Nc3 {[%emt 0:00:03]} e6 {[%emt 0:00:03]} 7. Bd3 {[%emt 0:00:09]} Be7 {[%emt 0:00:52]} 8. Be3 {[%emt 0:00:07]} Qc7 {[%emt 0:00:03]} 9. f4 {[%emt 0:00:13]} d6 {[%emt 0:00:07]} 10. Qf3 {[%emt 0:01:09]} a6 {[%emt 0:00:10]} 11. g4 {[%emt 0:09:09]} Nd7 {[%emt 0:02:09]} 12. O-O-O {[%emt 0:03:57]} b5 {[%emt 0:00:24]} 13. Kb1 {[%emt 0:01:20]} Bb7 {[%emt 0:04:10]} 14. g5 {[%emt 0:05:13]} Nb4 {[%emt 0:06:20]} 15. Rhf1 {[%emt 0:06:19]} Rc8 {[%emt 0:02:30]} 16. a3 {[%emt 0:18:50]} Nxd3 {[%emt 0:03:47]} 17. cxd3 {[%emt 0:00:34]} O-O {[%emt 0:01:41]} 18. Nd4 {[%emt 0:06:05]} g6 {[%emt 0:08:36]} 19. Qh3 {[%emt 0:03:09]} e5 {[%emt 0:00:31]} 20. Nde2 {[%emt 0:07:19]} exf4 {[%emt 0:16:53]} 21. Nxf4 {[%emt 0:00:27]} Qd8 {[%emt 0:14:52]} 22. Ncd5 {[%emt 0:08:25]} Nc5 {[%emt 0:06:47]} 23. Nf6+ {[%emt 0:02:31]} Bxf6 {[%emt 0:00:32]} 24. gxf6 {[%emt 0:00:04]} Kh8 {[%emt 0:21:40]} 25. Bd4 {[%emt 0:02:33]} Nb3 {[%emt 0:00:27]} 26. Qh6 {[%emt 0:00:36]} Rg8 {[%emt 0:00:01]} 27. Bc3 {[%emt 0:09:52]} Qf8 {[%emt 0:06:32]} 28. Qg7+ {[%emt 0:04:12]} Rxg7 {[%emt 0:00:28]} 29. fxg7+ {[%emt 0:00:05]} Qxg7 {[%emt 0:00:10]} 30. Bxg7+ {[%emt 0:00:04]} Kxg7 {[%emt 0:00:08]} 31. Ka2 {[%emt 0:00:25]} Nd4 {[%emt 0:02:02]} 32. Rc1 {[%emt 0:00:32]} Bc6 {[%emt 0:01:37]} 33. b4 {[%emt 0:03:37]} Re8 {[%emt 0:00:02]} 34. Kb2 {[%emt 0:00:26]} g5 {[%emt 0:01:21]} 35. Kc3 {[%emt 0:00:50]} Ne6 {[%emt 0:00:08]} 36. Nxe6+ {[%emt 0:00:28]} Rxe6 {[%emt 0:00:31]} 37. Kd4 {[%emt 0:00:21]} Be8 {[%emt 0:00:18]} 38. Rc7 {[%emt 0:01:52]} h5 {[%emt 0:00:18]} 39. Ra7 {[%emt 0:02:17]} Rg6 {[%emt 0:01:05]} 40. Rxa6 {[%emt 0:01:33]} Bd7 {[%emt 0:00:43]} 41. Ke3 {[%emt 0:32:22]} g4 {[%emt 0:30:19]} 42. d4 {[%emt 0:02:43]} h4 {[%emt 0:00:00]} 43. Ra7 {[%emt 0:00:00]} Be8 {[%emt 0:00:00]} 44. Rg1 {[%emt 0:00:00]} Kf6 {[%emt 0:00:00]} 45. Kf4 {[%emt 0:00:00]} g3 {[%emt 0:00:00]} 46. hxg3 {[%emt 0:00:00]} h3 {[%emt 0:00:00]} 47. g4 {[%emt 0:00:00]} Kg7 {[%emt 0:00:00]} 48. g5 {[%emt 0:00:00]} Kf8 {[%emt 0:00:00]} 49. Rh1 {[%emt 0:00:00]} f6 {[%emt 0:00:00]} 50. Rxh3 {[%emt 0:00:00]} fxg5+ {[%emt 0:00:00]} 51. Kf5 {[%emt 0:00:00]} Rg8 {[%emt 0:00:00]} 52. Rh6 {[%emt 0:00:00]} 1-0

[Event "Summer Prague Open A 2020"]
[Site "Prague"]
[Date "2020.08.12"]
[Round "6.7"]
[White "Hrabusa, Matej"]
[Black "Haack, Kevin"]
[Result "1-0"]
[ECO "A05"]
[WhiteElo "2350"]
[BlackElo "2180"]
[Annotator "ChessBase"]
[PlyCount "51"]
[EventDate "2020.08.08"]
[EventCountry "CZE"]
[SourceTitle "playchess.com"]
[Source "ChessBase"]
[SourceQuality "1"]
[TimeControl "40/5400+30:1800+30"]

1. Nf3 {[%emt 0:00:00]} Nf6 {[%emt 0:00:00]} 2. g3 {[%emt 0:00:00]} e6 {[%emt 0:00:08]} 3. Bg2 {[%emt 0:00:16]} Be7 {[%emt 0:00:31]} 4. O-O {[%emt 0:00:16]} O-O {[%emt 0:00:12]} 5. Re1 {[%emt 0:00:50]} d5 {[%emt 0:00:22]} 6. d3 {[%emt 0:00:13]} c5 {[%emt 0:00:49]} 7. Nbd2 {[%emt 0:00:13]} Nc6 {[%emt 0:01:37]} 8. e4 {[%emt 0:02:44]} Qc7 {[%emt 0:02:11]} 9. e5 {[%emt 0:00:51]} Nd7 {[%emt 0:01:01]} 10. Qe2 {[%emt 0:00:09]} b5 {[%emt 0:03:27]} 11. Nf1 {[%emt 0:01:27]} a5 {[%emt 0:03:27]} 12. h4 {[%emt 0:02:55]} Ba6 {[%emt 0:02:05]} 13. Bf4 {[%emt 0:01:28]} a4 {[%emt 0:06:44]} 14. Ne3 {[%emt 0:06:54]} a3 {[%emt 0:03:48]} 15. b3 {[%emt 0:04:06]} d4 {[%emt 0:06:00]} 16. Ng4 {[%emt 0:01:19]} c4 {[%emt 0:03:27]} 17. Nf6+ {[%emt 0:09:26]} Kh8 {[%emt 0:18:20]} 18. Ng5 {[%emt 0:04:46]} gxf6 {[%emt 0:12:18]} 19. exf6 {[%emt 0:02:14]} Bd6 {[%emt 0:01:19]} 20. Qh5 {[%emt 0:13:36]} Nxf6 {[%emt 0:00:10]} 21. Qh6 {[%emt 0:00:06]} Bxf4 {[%emt 0:01:57]} 22. Qxf6+ {[%emt 0:00:11]} Kg8 {[%emt 0:00:02]} 23. gxf4 {[%emt 0:02:46]} Bb7 {[%emt 0:05:35]} 24. Be4 {[%emt 0:00:39]} Rfe8 {[%emt 0:01:07]} 25. Bxh7+ {[%emt 0:00:47]} Kf8 {[%emt 0:00:06]} 26. Rxe6 {[%emt 0:01:20]} 1-0

[Event "Summer Prague Open A 2020"]
[Site "Prague"]
[Date "2020.08.12"]
[Round "6.8"]
[White "Post, Hugo"]
[Black "Buchenau, Frank"]
[Result "0-1"]
[ECO "C04"]
[WhiteElo "2203"]
[BlackElo "2278"]
[Annotator "ChessBase"]
[PlyCount "104"]
[EventDate "2020.08.08"]
[EventCountry "CZE"]
[SourceTitle "playchess.com"]
[Source "ChessBase"]
[SourceQuality "1"]
[TimeControl "40/5400+30:1800+30"]

1. e4 {[%emt 0:00:00]} e6 {[%emt 0:00:50]} 2. d4 {[%emt 0:00:00]} d5 {[%emt 0:00:19]} 3. Nd2 {[%emt 0:00:00]} Nc6 {[%emt 0:00:09]} 4. Ngf3 {[%emt 0:00:59]} Nf6 {[%emt 0:00:10]} 5. e5 {[%emt 0:01:41]} Nd7 {[%emt 0:00:10]} 6. Nb3 {[%emt 0:01:32]} a5 {[%emt 0:00:22]} 7. a4 {[%emt 0:00:18]} Be7 {[%emt 0:00:14]} 8. c3 {[%emt 0:00:26]} b6 {[%emt 0:00:12]} 9. h4 {[%emt 0:00:41]} Ba6 {[%emt 0:02:16]} 10. Bxa6 {[%emt 0:01:08]} Rxa6 {[%emt 0:00:07]} 11. h5 {[%emt 0:00:16]} h6 {[%emt 0:00:35]} 12. Rh3 {[%emt 0:01:50]} Ra8 {[%emt 0:02:19]} 13. Rg3 {[%emt 0:02:46]} Bf8 {[%emt 0:02:26]} 14. Qd3 {[%emt 0:05:30]} Qc8 {[%emt 0:10:29]} 15. Qe3 {[%emt 0:12:33]} Qa6 {[%emt 0:04:12]} 16. Nh4 {[%emt 0:07:30]} b5 {[%emt 0:11:21]} 17. axb5 {[%emt 0:01:44]} Qxb5 {[%emt 0:00:07]} 18. Nd2 {[%emt 0:00:17]} Nb6 {[%emt 0:03:54]} 19. f4 {[%emt 0:03:15]} Ne7 {[%emt 0:14:44]} 20. Qf2 {[%emt 0:07:23]} Nf5 {[%emt 0:05:07]} 21. Nxf5 {[%emt 0:00:47]} exf5 {[%emt 0:00:08]} 22. Nf3 {[%emt 0:02:05]} Qd7 {[%emt 0:20:18]} 23. Qc2 {[%emt 0:03:01]} Nc8 {[%emt 0:04:22]} 24. Nh4 {[%emt 0:03:15]} Ne7 {[%emt 0:00:20]} 25. b3 {[%emt 0:11:53]} Qe6 {[%emt 0:04:34]} 26. b4 {[%emt 0:10:48]} g5 {[%emt 0:01:56]} 27. hxg6 {[%emt 0:03:18]} fxg6 {[%emt 0:01:47]} 28. Rxa5 {[%emt 0:00:46]} Rxa5 {[%emt 0:01:52]} 29. bxa5 {[%emt 0:00:01]} Kf7 {[%emt 0:02:36]} 30. Ba3 {[%emt 0:02:22]} Rg8 {[%emt 0:00:25]} 31. Qd3 {[%emt 0:04:34]} Nc6 {[%emt 0:01:51]} 32. Bxf8 {[%emt 0:00:13]} Kxf8 {[%emt 0:00:08]} 33. a6 {[%emt 0:03:30]} Kf7 {[%emt 0:00:08]} 34. Qb5 {[%emt 0:01:23]} Ne7 {[%emt 0:02:26]} 35. a7 {[%emt 0:02:14]} Qb6 {[%emt 0:03:23]} 36. Qa4 {[%emt 0:07:20]} Ra8 {[%emt 0:00:27]} 37. Re3 {[%emt 0:00:33]} Rxa7 {[%emt 0:00:10]} 38. e6+ {[%emt 0:00:34]} Kf8 {[%emt 0:00:35]} 39. Qd7 {[%emt 0:00:26]} c5 {[%emt 0:00:54]} 40. Nxg6+ {[%emt 0:00:35]} Nxg6 {[%emt 0:00:41]} 41. Qxd5 {[%emt 0:01:47]} Qb1+ {[%emt 0:05:42]} 42. Kf2 {[%emt 0:00:06]} Qa2+ {[%emt 0:01:03]} 43. Qxa2 {[%emt 0:00:01]} Rxa2+ {[%emt 0:00:09]} 44. Kf3 {[%emt 0:00:30]} cxd4 {[%emt 0:02:14]} 45. cxd4 {[%emt 0:00:04]} Rd2 {[%emt 0:00:53]} 46. g4 {[%emt 0:01:38]} Rxd4 {[%emt 0:00:31]} 47. Kg3 {[%emt 0:03:46]} Rxf4 {[%emt 0:08:06]} 48. e7+ {[%emt 0:01:14]} Ke8 {[%emt 0:00:10]} 49. gxf5 {[%emt 0:02:13]} Rxf5 {[%emt 0:00:07]} 50. Re6 {[%emt 0:00:21]} Rg5+ {[%emt 0:00:32]} 51. Kh2 {[%emt 0:00:07]} h5 {[%emt 0:00:53]} 52. Kh3 {[%emt 0:00:22]} Nf4+ {[%emt 0:00:37]} 0-1

[Event "Summer Prague Open A 2020"]
[Site "Prague"]
[Date "2020.08.12"]
[Round "6.9"]
[White "Wedda, Dries"]
[Black "Pozdnjakov, Viatcheslav"]
[Result "1/2-1/2"]
[ECO "A58"]
[WhiteElo "2172"]
[BlackElo "2300"]
[Annotator "ChessBase"]
[PlyCount "166"]
[EventDate "2020.08.08"]
[EventCountry "CZE"]
[SourceTitle "playchess.com"]
[Source "ChessBase"]
[SourceQuality "1"]
[TimeControl "40/5400+30:1800+30"]

1. d4 Nf6 2. c4 c5 3. d5 b5 4. cxb5 a6 5. bxa6 g6 6. Nc3 Qa5 7. Bd2 Bxa6 8. Ne4 Qb6 9. Nxf6+ exf6 10. Bc3 Bg7 11. e3 Bxf1 12. Kxf1 Na6 13. g3 Nc7 14. b3 O-O 15. Kg2 Rfe8 16. Qf3 Nb5 17. Bb2 Na3 18. Rc1 Nb5 19. a4 Nc7 20. Nh3 d6 21. Bxf6 Qxb3 22. Rhd1 Qxa4 23. Ng5 h6 24. Bxg7 hxg5 25. Bc3 Qe4 26. Rb1 g4 27. Qxe4 Rxe4 28. Rb7 Ne8 29. h3 Rc4 30. Bb2 gxh3+ 31. Kxh3 Ra2 32. Rd3 Rc2 33. Rdb3 Rxf2 34. Bc3 Nf6 35. Rb2 Raxb2 36. Bxb2 Kg7 37. Ba1 g5 38. g4 Kg6 39. Rb6 Ne4 40. Be5 Rf3+ 41. Kg2 Rxe3 42. Bxd6 Nxd6 43. Rxd6+ Kg7 44. Rc6 Re4 45. Kf3 Rf4+ 46. Kg3 c4 47. d6 Kf6 48. d7+ Ke7 49. Rd6 Kd8 50. Rd5 f6 51. Rd6 Rf1 52. Kg2 Re1 53. Rxf6 Kxd7 54. Kf2 Re5 55. Ra6 c3 56. Ra1 c2 57. Rc1 Rc5 58. Ke3 Ke6 59. Kd4 Kd6 60. Ke4 Rc4+ 61. Kf5 Rc5+ 62. Ke4 Ke6 63. Kd4 Rd5+ 64. Ke3 Rc5 65. Kd4 Rc8 66. Re1+ Kd6 67. Rc1 Rc7 68. Ke4 Rc5 69. Kd4 Kc6 70. Ke4 Kd7 71. Kd4 Rc8 72. Kd5 Ke7 73. Re1+ Kf6 74. Rf1+ Kg6 75. Rc1 Rc3 76. Kd4 Rg3 77. Rxc2 Rxg4+ 78. Ke3 Rf4 79. Rf2 Ra4 80. Kf3 Kh5 81. Kg2 Kg4 82. Rb2 Kh4 83. Rc2 Rb4 1/2-1/2

[Event "Summer Prague Open A 2020"]
[Site "Prague"]
[Date "2020.08.12"]
[Round "6.10"]
[White "Babula, Milan"]
[Black "Mladek, Richard"]
[Result "0-1"]
[ECO "C90"]
[WhiteElo "2160"]
[BlackElo "2280"]
[Annotator "ChessBase"]
[PlyCount "86"]
[EventDate "2020.08.08"]
[EventCountry "CZE"]
[SourceTitle "playchess.com"]
[Source "ChessBase"]
[SourceQuality "1"]
[TimeControl "40/5400+30:1800+30"]

1. e4 e5 2. Nf3 Nc6 3. Bb5 a6 4. Ba4 Nf6 5. O-O Be7 6. d3 b5 7. Bb3 O-O 8. Re1 d6 9. c3 Na5 10. Bc2 c5 11. Nbd2 Qc7 12. Nf1 Re8 13. Ne3 Bf8 14. h3 Bb7 15. b4 Nc6 16. bxc5 dxc5 17. Nh2 Rad8 18. Bd2 Ne7 19. Nhg4 Nxg4 20. hxg4 Nc8 21. Qe2 Nd6 22. f3 Rd7 23. c4 Be7 24. Nd5 Bxd5 25. cxd5 c4 26. Rec1 c3 27. Bb3 b4 28. Be3 Nb5 29. Ba4 Qa5 30. Qd1 Rc8 31. Bxb5 Qxb5 32. Rc2 a5 33. d4 exd4 34. Bxd4 a4 35. Rb1 Rdc7 36. Qf1 Qb7 37. Qd3 Rc4 38. Kf1 Rxd4 39. Qxd4 Qb5+ 40. Re2 c2 41. Rc1 b3 42. axb3 axb3 43. Qb2 Bg5 0-1

[Event "Summer Prague Open A 2020"]
[Site "Prague"]
[Date "2020.08.12"]
[Round "6.11"]
[White "Schernthaner, David"]
[Black "Schnider, Gert"]
[Result "1/2-1/2"]
[ECO "C78"]
[WhiteElo "2220"]
[BlackElo "2423"]
[Annotator "ChessBase"]
[PlyCount "42"]
[EventDate "2020.08.08"]
[EventCountry "CZE"]
[SourceTitle "playchess.com"]
[Source "ChessBase"]
[SourceQuality "1"]
[TimeControl "40/5400+30:1800+30"]

1. e4 e5 2. Nf3 Nc6 3. Bb5 a6 4. Ba4 Nf6 5. O-O Bc5 6. c3 O-O 7. d4 Ba7 8. dxe5 Nxe4 9. Bc2 d5 10. exd6 Nxd6 11. Bg5 f6 12. Bf4 g5 13. Bxd6 cxd6 14. Nd4 Nxd4 15. cxd4 Qb6 16. Nc3 Be6 17. Qd3 Qc7 18. d5 Bg4 19. Qg3 Bh5 20. Rac1 Rae8 21. Bf5 Re5 1/2-1/2